fUST/lending_fUST_20250809
["ID","MTS","AMOUNT","RATE_DAILY","PERIOD"]
[378059929,1754713842454,-460.0,0.00021917,2]
[378059930,1754713842464,-460.0,0.00021917,2]
[378059931,1754713842474,-461.07518691,0.00021917,2]
[378059932,1754713842483,-463.41090081,0.00021917,2]
[378059933,1754713842493,-460.0,0.00021917,2]
[378059934,1754713842502,-460.53905242,0.00021917,2]
[378059935,1754713842511,-460.0,0.00021917,2]
[378059936,1754713842521,-233.23266367,0.00021917,2]
[378059937,1754713842530,-460.0,0.00021917,2]
[378059938,1754713842540,-460.0,0.00021917,2]
[378059939,1754713842549,-460.0,0.00021917,2]
[378059940,1754713842559,-463.56752237,0.00021917,2]
[378059941,1754713842568,-535.71,0.00021917,2]
[378059942,1754713842577,-460.0,0.00021917,2]
[378059943,1754713842586,-460.0,0.00021917,2]
[378059944,1754713842596,-460.0,0.00021917,2]
[378059945,1754713842605,-460.0,0.00021917,2]
[378059946,1754713842615,-470.06158457,0.00021917,2]
[378059947,1754713842713,-460.0,0.00021917,2]
[378059948,1754713842723,-460.0,0.00021917,2]
[378059949,1754713842732,-460.0,0.00021917,2]
[378059950,1754713842742,-460.0,0.00021917,2]
[378059951,1754713842751,-460.0,0.00021917,2]
[378059952,1754713842760,-463.33824084,0.00021917,2]
[378059953,1754713842770,-460.0,0.00021917,2]
[378059954,1754713842779,-460.0,0.00021917,2]
[378059955,1754713842788,-463.11882144,0.00021917,2]
[378059956,1754713842798,-460.0,0.00021917,2]
[378059957,1754713842807,-460.0,0.00021917,2]
[378059958,1754713842817,-460.0,0.00021917,2]
[378059959,1754713842826,-460.0,0.00021917,2]
[378059960,1754713842836,-460.0,0.00021917,2]
[378059961,1754713842845,-462.97797273,0.00021917,2]
[378059962,1754713842854,-460.0,0.00021917,2]
[378059963,1754713842864,-1082.16,0.00021917,2]
[378059964,1754713842873,-460.0,0.00021917,2]
[378059965,1754713842883,-460.0,0.00021917,2]
[378059966,1754713842892,-460.0,0.00021917,2]
[378059967,1754713842903,-462.24035906,0.00021917,2]
[378059968,1754713842913,-465.22593109,0.00021917,2]
[378059969,1754713842923,-460.0,0.00021917,2]
[378059970,1754713842933,-968.67,0.00021917,2]
[378059971,1754713842942,-460.0,0.00021917,2]
[378059972,1754713842952,-756.39,0.00021917,2]
[378059973,1754713842961,-460.0,0.00021917,2]
[378059974,1754713842971,-844.58,0.00021917,2]
[378059975,1754713842981,-1070.24,0.00021917,2]
[378059976,1754713842990,-460.19597531,0.00021917,2]
[378059977,1754713842999,-151.0,0.00021917,2]
[378059978,1754713843008,-486.04,0.00021917,2]
[378059979,1754713843018,-151.0,0.00021917,2]
[378059980,1754713843027,-460.0,0.00021917,2]
[378059981,1754713843037,-465.05233518,0.00021917,2]
[378059982,1754713843046,-460.0,0.00021917,2]
[378059983,1754713843055,-1011.12,0.00021917,2]
[378059984,1754713843065,-460.0,0.00021917,2]
[378059985,1754713843074,-460.0,0.00021917,2]
[378059986,1754713843083,-460.0,0.00021917,2]
[378059987,1754713843092,-460.0,0.00021917,2]
[378059988,1754713843102,-460.0,0.00021917,2]
[378059989,1754713843111,-460.0,0.00021917,2]
[378059990,1754713843121,-463.64663747,0.00021917,2]
[378059991,1754713843130,-460.0,0.00021917,2]
[378059992,1754713843140,-460.65878156,0.00021917,2]
[378059993,1754713843149,-460.0,0.00021917,2]
[378059994,1754713843158,-460.0,0.00021917,2]
[378059995,1754713843169,-461.13572071,0.00021917,2]
[378059996,1754713843181,-460.0,0.00021917,2]
[378059997,1754713843191,-460.0,0.00021917,2]
[378059998,1754713843200,-483.85060403,0.00021917,2]
[378059999,1754713843209,-867.78,0.00021917,2]
[378060000,1754713843219,-460.0,0.00021917,2]
[378060001,1754713843228,-460.0,0.00021917,2]
[378060002,1754713843238,-460.0,0.00021917,2]
[378060003,1754713843247,-1421.98,0.00021917,2]
[378060005,1754713843256,-460.0,0.00021917,2]
[378060007,1754713843266,-460.0,0.00021917,2]
[378060009,1754713843276,-462.2291617,0.00021917,2]
[378060010,1754713843285,-461.61147124,0.00021917,2]
[378060011,1754713843294,-460.0,0.00021917,2]
[378060012,1754713843303,-574.66,0.00021917,2]
[378060013,1754713843312,-460.0,0.00021917,2]
[378060014,1754713843322,-460.0,0.00021917,2]
[378060015,1754713843331,-460.0,0.00021917,2]
[378060016,1754713843341,-472.36553321,0.00021917,2]
[378060017,1754713843352,-460.0,0.00021917,2]
[378060018,1754713843360,-464.86974038,0.00021917,2]
[378060019,1754713843371,-461.57411595,0.00021917,2]
[378060020,1754713843383,-460.0,0.00021917,2]
[378060021,1754713843393,-474.7867492,0.00021917,2]
[378060022,1754713843402,-460.0,0.00021917,2]
[378060023,1754713843412,-3037.49,0.00021917,2]
[378060024,1754713843422,-168.54577211,0.00021917,2]
[378060025,1754713843434,-461.77145001,0.00021917,2]
[378060026,1754713843443,-719.99,0.00021917,2]
[378060027,1754713843453,-460.0,0.00021917,2]
[378060028,1754713843464,-461.12968544,0.00021917,2]
[378060029,1754713843475,-478.84,0.00021917,2]
[378060030,1754713843485,-460.0,0.00021917,2]
[378060031,1754713843495,-460.0,0.00021917,2]
[378060032,1754713843505,-151.0,0.00021917,2]
[378060033,1754713843515,-463.36001211,0.00021917,2]
[378060034,1754713843525,-497.89,0.00021917,2]
[378060035,1754713843534,-467.62036259,0.00021917,2]
[378060036,1754713843545,-500.0,0.00021917,2]
[378060037,1754713843555,-460.0,0.00021917,2]
[378060038,1754713843567,-460.0,0.00021917,2]
[378060039,1754713843577,-535.97559878,0.00021917,2]
[378060040,1754713843586,-462.0438933,0.00021917,2]
[378060041,1754713843595,-460.0,0.00021917,2]
[378060042,1754713843604,-460.0,0.00021917,2]
[378060043,1754713843614,-463.69505395,0.00021917,2]
[378060044,1754713843623,-460.0,0.00021917,2]
[378060045,1754713843633,-1371.05,0.00021917,2]
[378060046,1754713843642,-413.22875271,0.00021917,2]
[378060047,1754713843651,-463.72282106,0.00021917,2]
[378060048,1754713843660,-460.0,0.00021917,2]
[378060049,1754713843670,-460.0,0.00021917,2]
[378060050,1754713843679,-4921.9,0.00021917,2]
[378060051,1754713843689,-460.0,0.00021917,2]
[378060052,1754713843698,-460.0,0.00021917,2]
[378060053,1754713843707,-460.0,0.00021917,2]
[378060054,1754713843717,-460.0,0.00021917,2]
[378060055,1754713843726,-681.73,0.00021917,2]
[378060056,1754713843735,-463.54229539,0.00021917,2]
[378060057,1754713843745,-460.0,0.00021917,2]
[378060058,1754713843754,-460.0,0.00021917,2]
[378060059,1754713843763,-461.19412888,0.00021917,2]
[378060060,1754713843773,-460.0,0.00021917,2]
[378060061,1754713843782,-460.0,0.00021917,2]
[378060062,1754713843791,-460.0,0.00021917,2]
[378060063,1754713843801,-460.0,0.00021917,2]
[378060064,1754713843811,-3233.6,0.00021917,2]
[378060065,1754713843821,-460.0,0.00021917,2]
[378060066,1754713843830,-460.0,0.00021917,2]
[378060067,1754713843839,-460.0,0.00021917,2]
[378060068,1754713843849,-460.0,0.00021917,2]
[378060069,1754713843859,-1076.66,0.00021917,2]
[378060070,1754713843868,-518.04767297,0.00021917,2]
[378060071,1754713843877,-463.12660417,0.00021917,2]
[378060072,1754713843887,-460.93996279,0.00021917,2]
[378060073,1754713843897,-460.59188849,0.00021917,2]
[378060074,1754713843906,-460.0,0.00021917,2]
[378060075,1754713843916,-597.98,0.00021917,2]
[378060076,1754713843925,-466.69792978,0.00021917,2]
[378060077,1754713843934,-460.0,0.00021917,2]
[378060078,1754713843944,-460.0,0.00021917,2]
[378060079,1754713843953,-461.36797198,0.00021917,2]
[378060080,1754713843962,-460.0,0.00021917,2]
[378060081,1754713843971,-462.0650651,0.00021917,2]
[378060082,1754713843981,-460.0,0.00021917,2]
[378060083,1754713843990,-461.93705158,0.00021917,2]
[378060084,1754713843999,-460.0,0.00021917,2]
[378060085,1754713844009,-460.0,0.00021917,2]
[378060086,1754713844018,-2035.41,0.00021917,2]
[378060087,1754713844028,-460.0,0.00021917,2]
[378060088,1754713844038,-461.41951935,0.00021917,2]
[378060089,1754713844049,-460.0,0.00021917,2]
[378060090,1754713844061,-151.0,0.00021918,2]
[378060091,1754713844070,-4646.1514896,0.00021944,2]
[378060092,1754713844080,-151.0,0.00021953,2]
[378060093,1754713844090,-151.0,0.00021953,2]
[378060094,1754713844100,-247.73543846,0.00021953,2]
[378060095,1754713844109,-151.0,0.00021953,2]
[378060096,1754713844119,-151.0,0.00021953,2]
[378060097,1754713844129,-177.55099956,0.00021953,2]
[378060098,1754713844138,-500.0,0.00021973,2]
[378060099,1754713844147,-500.0,0.00021973,2]
[378060100,1754713844156,-500.0,0.00021973,2]
[378060101,1754713844166,-500.0,0.00021973,2]
[378060102,1754713844179,-500.0,0.00021973,2]
[378060103,1754713844188,-464.19647516,0.00021973,2]
[378060104,1754713844197,-500.0,0.00021973,2]
[378060105,1754713844206,-150.0,0.00021973,2]
[378060106,1754713844216,-500.0,0.00021973,2]
[378060107,1754713844226,-600.0,0.00021973,2]
[378060108,1754713844236,-508.11371333,0.00021973,2]
[378060109,1754713844245,-501.48954951,0.00021973,2]
[378060110,1754713844256,-477.83451743,0.00021973,2]
[378060111,1754713844267,-504.31826731,0.00021973,2]
[378060112,1754713844279,-169.43829471,0.00021973,2]
[378060113,1754713844289,-501.43935375,0.00021973,2]
[378060114,1754713844301,-409.01319132,0.00021973,2]
[378060115,1754713844310,-502.38537494,0.00021973,2]
[378060116,1754713844321,-500.0,0.00021973,2]
[378060117,1754713844332,-501.3331216,0.00021973,2]
[378060118,1754713844342,-500.0,0.00021973,2]
[378060119,1754713844351,-502.01602962,0.00021973,2]
[378060120,1754713844360,-500.0,0.00021973,2]
[378060121,1754713844369,-458.90736978,0.00021973,2]
[378060122,1754713844379,-500.0,0.00021973,2]
[378060123,1754713844388,-500.0,0.00021973,2]
[378060124,1754713844397,-504.47162244,0.00021973,2]
[378060125,1754713844406,-500.0,0.00021973,2]
[378060126,1754713844415,-570.00329129,0.00021973,2]
[378060127,1754713844424,-500.0,0.00021973,2]
[378060128,1754713844435,-500.0,0.00021973,2]
[378060129,1754713844445,-592.18039757,0.00021973,2]
[378060130,1754713844455,-500.0,0.00021973,2]
[378060131,1754713844464,-500.0,0.00021973,2]
[378060132,1754713844474,-500.0,0.00021973,2]
[378060133,1754713844483,-500.0,0.00021973,2]
[378060134,1754713844493,-392.07726344,0.00021973,2]
[378060135,1754713844503,-501.21025951,0.00021973,2]
[378060136,1754713844512,-500.0,0.00021973,2]
[378060137,1754713844521,-503.03309866,0.00021973,2]
[378060138,1754713844530,-500.0,0.00021973,2]
[378060139,1754713844540,-500.0,0.00021973,2]
[378060140,1754713844549,-500.0,0.00021973,2]
[378060141,1754713844558,-500.0,0.00021973,2]
[378060142,1754713844567,-500.0,0.00021973,2]
[378060143,1754713844576,-500.0,0.00021973,2]
[378060144,1754713844586,-500.0,0.00021973,2]
[378060145,1754713844595,-551.196185,0.00021973,2]
[378060146,1754713844604,-560.74834892,0.00021973,2]
[378060147,1754713844614,-500.0,0.00021973,2]
[378060148,1754713844623,-384.37993711,0.00021973,2]
[378060149,1754713844632,-500.0,0.00021973,2]
[378060150,1754713844641,-500.0,0.00021973,2]
[378060151,1754713844650,-500.0,0.00021973,2]
[378060152,1754713844660,-502.50505203,0.00021973,2]
[378060153,1754713844670,-500.0,0.00021973,2]
[378060154,1754713844679,-151.0,0.00021973,7]
[378060155,1754713844690,-151.844864,0.00021973,7]
[378060156,1754713844700,-151.0,0.00021973,7]
[378060157,1754713844797,-151.0,0.00021973,7]
[378060158,1754713844807,-481.2,0.00022,2]
[378060159,1754713844816,-157.0,0.00022,2]
[378060160,1754713844826,-200.0,0.0002215,15]
[378060161,1754713844836,-200.0,0.0002215,15]
[378060162,1754713844847,-200.0,0.0002215,15]
[378060163,1754713844856,-200.0,0.0002215,15]
[378060164,1754713844866,-200.0,0.0002215,15]
[378060165,1754713844876,-500.0,0.00022173,2]
[378060166,1754713844886,-500.0,0.00022173,2]
[378060167,1754713844895,-151.0,0.00022173,7]
[378060168,1754713844904,-217.1684481,0.00022191,2]
[378060169,1754713844915,-460.0,0.00022191,2]
[378060170,1754713844924,-609.59809324,0.00022191,2]
[378060171,1754713844933,-460.0,0.00022191,2]
[378060172,1754713844942,-460.0,0.00022191,2]
[378060173,1754713844951,-460.0,0.00022191,2]
[378060174,1754713844960,-457.02906027,0.00022191,2]
[378060175,1754713844970,-460.0,0.00022191,2]
[378060176,1754713844979,-460.0,0.00022191,2]
[378060177,1754713844988,-460.0,0.00022191,2]
[378060178,1754713844998,-460.0,0.00022191,2]
[378060179,1754713845008,-460.0,0.00022191,2]
[378060180,1754713845017,-460.0,0.00022191,2]
[378060181,1754713845027,-460.0,0.00022191,2]
[378060182,1754713845037,-460.0,0.00022191,2]
[378060183,1754713845047,-460.0,0.00022191,2]
[378060184,1754713845056,-460.0,0.00022191,2]
[378060185,1754713845066,-520.18,0.00022191,2]
[378060186,1754713845076,-460.0,0.00022191,2]
[378060187,1754713845086,-460.0,0.00022191,2]
[378060188,1754713845095,-464.82689135,0.00022191,2]
[378060189,1754713845104,-460.0,0.00022191,2]
[378060190,1754713845117,-460.0,0.00022191,2]
[378060191,1754713845129,-486.5376616,0.00022191,2]
[378060192,1754713845140,-467.09516015,0.00022191,2]
[378060193,1754713845157,-208.40669473,0.00022191,2]
[378060194,1754713845168,-460.0,0.00022191,2]
[378060195,1754713845179,-460.0,0.00022191,2]
[378060196,1754713845189,-460.0,0.00022191,2]
[378060197,1754713845199,-460.0,0.00022191,2]
[378060198,1754713845208,-151.0,0.00022191,7]
[378060199,1754713845218,-460.0,0.00022191,2]
[378060200,1754713845232,-253.76221,0.00022191,7]
[378060201,1754713845245,-271.77467419,0.00022191,2]
[378060202,1754713845260,-460.0,0.00022191,2]
[378060203,1754713845272,-638.99,0.00022191,2]
[378060204,1754713845282,-540.23411895,0.00022191,2]
[378060205,1754713845291,-460.0,0.00022191,2]
[378060206,1754713845302,-460.0,0.00022191,2]
[378060207,1754713845312,-151.0,0.00022191,7]
[378060208,1754713845322,-460.0,0.00022191,2]
[378060209,1754713845331,-460.0,0.00022191,2]
[378060210,1754713845343,-460.0,0.00022191,2]
[378060211,1754713845352,-460.0,0.00022191,2]
[378060212,1754713845362,-347.36916299,0.00022191,2]
[378060213,1754713845372,-460.0,0.00022191,2]
[378060214,1754713845381,-460.0,0.00022191,2]
[378060215,1754713845390,-460.0,0.00022191,2]
[378060216,1754713845399,-468.66278935,0.00022191,2]
[378060217,1754713845409,-460.0,0.00022191,2]
[378060218,1754713845419,-460.0,0.00022191,2]
[378060219,1754713845430,-612.0,0.00022191,2]
[378060220,1754713845439,-151.0,0.00022191,7]
[378060221,1754713845448,-460.0,0.00022191,2]
[378060222,1754713845458,-151.0,0.00022191,7]
[378060223,1754713845468,-461.24791122,0.00022191,2]
[378060224,1754713845477,-460.0,0.00022191,2]
[378060225,1754713845488,-460.0,0.00022191,2]
[378060226,1754713845497,-460.0,0.00022191,2]
[378060227,1754713845507,-460.0,0.00022191,2]
[378060228,1754713845517,-464.57434927,0.00022191,2]
[378060229,1754713845527,-460.0,0.00022191,2]
[378060230,1754713845536,-460.0,0.00022191,2]
[378060231,1754713845547,-460.0,0.00022191,2]
[378060232,1754713845557,-518.64,0.00022191,2]
[378060233,1754713845568,-460.0,0.00022191,2]
[378060234,1754713845577,-460.0,0.00022191,2]
[378060235,1754713845587,-460.0,0.00022191,2]
[378060236,1754713845596,-460.0,0.00022191,2]
[378060237,1754713845606,-481.28251211,0.00022191,2]
[378060238,1754713845616,-460.0,0.00022191,2]
[378060239,1754713845625,-208.37611673,0.00022191,2]
[378060240,1754713845634,-460.0,0.00022191,2]
[378060241,1754713845643,-462.7470385,0.00022191,2]
[378060242,1754713845652,-460.0,0.00022191,2]
[378060243,1754713845661,-460.0,0.00022191,2]
[378060244,1754713845671,-460.0,0.00022191,2]
[378060245,1754713845680,-460.0,0.00022191,2]
[378060246,1754713845690,-151.0,0.00022191,7]
[378060247,1754713845700,-151.0,0.00022191,7]
[378060248,1754713845709,-460.0,0.00022191,2]
[378060249,1754713845719,-460.0,0.00022191,2]
[378060250,1754713845728,-460.0,0.00022191,2]
[378060251,1754713845738,-460.0,0.00022191,2]
[378060252,1754713845748,-460.0,0.00022191,2]
[378060253,1754713845759,-460.0,0.00022191,2]
[378060254,1754713845768,-460.0,0.00022191,2]
[378060255,1754713845777,-161.6688,0.00022191,7]
[378060256,1754713845786,-460.0,0.00022191,2]
[378060257,1754713845796,-460.0,0.00022191,2]
[378060258,1754713845805,-460.0,0.00022191,2]
[378060259,1754713845814,-460.0,0.00022191,2]
[378060260,1754713845824,-460.0,0.00022191,2]
[378060261,1754713845834,-151.0,0.00022191,7]
[378060262,1754713845843,-460.0,0.00022191,2]
[378060263,1754713845852,-417.66199185,0.00022191,2]
[378060264,1754713845864,-460.0,0.00022191,2]
[378060265,1754713845874,-460.0,0.00022191,2]
[378060266,1754713845884,-460.0,0.00022191,2]
[378060267,1754713845895,-460.0,0.00022191,2]
[378060268,1754713845905,-159.03083917,0.00022191,2]
[378060269,1754713845914,-151.0,0.00022191,7]
[378060270,1754713845924,-151.0,0.00022191,7]
[378060271,1754713845933,-464.83021181,0.00022191,2]
[378060272,1754713845942,-151.0,0.00022191,7]
[378060273,1754713845952,-154.460892,0.00022191,7]
[378060274,1754713845961,-460.0,0.00022191,2]
[378060275,1754713845970,-460.0,0.00022191,2]
[378060276,1754713845980,-460.0,0.00022191,2]
[378060277,1754713845990,-151.0,0.00022191,7]
[378060278,1754713845999,-151.0,0.00022191,7]
[378060279,1754713846009,-505.09777884,0.00022191,2]
[378060280,1754713846018,-460.0,0.00022191,2]
[378060281,1754713846028,-460.0,0.00022191,2]
[378060282,1754713846039,-460.0,0.00022191,2]
[378060283,1754713846049,-463.89198853,0.00022191,2]
[378060284,1754713846058,-460.0,0.00022191,2]
[378060285,1754713846067,-480.28,0.00022191,2]
[378060286,1754713846077,-460.0,0.00022191,2]
[378060287,1754713846086,-151.0,0.00022191,7]
[378060288,1754713846095,-151.0,0.00022191,7]
[378060289,1754713846104,-460.0,0.00022191,2]
[378060290,1754713846114,-460.0,0.00022191,2]
[378060291,1754713846123,-463.52747182,0.00022191,2]
[378060292,1754713846132,-151.0,0.00022191,7]
[378060293,1754713846141,-460.0,0.00022191,2]
[378060294,1754713846150,-151.0,0.00022191,7]
[378060295,1754713846158,-460.0,0.00022191,2]
[378060296,1754713846167,-151.0,0.00022191,7]
[378060297,1754713846181,-460.0,0.00022191,2]
[378060298,1754713846190,-233.011185,0.00022191,7]
[378060299,1754713846199,-230.07942203,0.00022191,2]
[378060300,1754713846208,-460.0,0.00022191,2]
[378060301,1754713846217,-151.0,0.00022191,7]
[378060302,1754713846227,-151.0,0.00022191,7]
[378060303,1754713846235,-463.57266305,0.00022191,2]
[378060304,1754713846244,-460.0,0.00022191,2]
[378060305,1754713846253,-460.0,0.00022191,2]
[378060306,1754713846262,-460.0,0.00022191,2]
[378060307,1754713846272,-460.0,0.00022191,2]
[378060308,1754713846281,-460.0,0.00022191,2]
[378060309,1754713846290,-460.0,0.00022191,2]
[378060310,1754713846299,-460.0,0.00022191,2]
[378060311,1754713846308,-711.13,0.00022191,2]
[378060312,1754713846318,-460.0,0.00022191,2]
[378060313,1754713846327,-460.0,0.00022191,2]
[378060314,1754713846337,-1177.39,0.00022191,2]
[378060315,1754713846347,-460.0,0.00022191,2]
[378060316,1754713846356,-460.0,0.00022191,2]
[378060317,1754713846366,-460.0,0.00022191,2]
[378060318,1754713846375,-460.0,0.00022191,2]
[378060319,1754713846385,-460.0,0.00022191,2]
[378060320,1754713846394,-1450.18,0.00022191,2]
[378060321,1754713846403,-460.0,0.00022191,2]
[378060322,1754713846412,-460.0,0.00022191,2]
[378060323,1754713846422,-460.0,0.00022191,2]
[378060324,1754713846431,-460.0,0.00022191,2]
[378060325,1754713846440,-460.0,0.00022191,2]
[378060326,1754713846450,-460.0,0.00022191,2]
[378060327,1754713846459,-460.0,0.00022191,2]
[378060328,1754713846468,-466.03900091,0.00022191,2]
[378060329,1754713846477,-460.0,0.00022191,2]
[378060330,1754713846486,-460.0,0.00022191,2]
[378060331,1754713846496,-467.63045307,0.00022191,2]
[378060332,1754713846506,-463.14574517,0.00022191,2]
[378060333,1754713846515,-460.0,0.00022191,2]
[378060334,1754713846525,-460.0,0.00022191,2]
[378060335,1754713846534,-460.0,0.00022191,2]
[378060336,1754713846543,-460.0,0.00022191,2]
[378060337,1754713846553,-460.0,0.00022191,2]
[378060338,1754713846562,-460.0,0.00022191,2]
[378060339,1754713846571,-151.0,0.00022191,7]
[378060340,1754713846580,-460.0,0.00022191,2]
[378060341,1754713846589,-791.54,0.00022191,2]
[378060342,1754713846598,-2001.94,0.00022191,2]
[378060343,1754713846607,-460.0,0.00022191,2]
[378060344,1754713846617,-1774.2,0.00022191,2]
[378060346,1754713846626,-1145.59,0.00022191,2]
[378060348,1754713846635,-460.0,0.00022191,2]
[378060349,1754713846724,-248.20394,0.00022191,7]
[378060350,1754713846734,-248.20394,0.00022191,7]
[378060351,1754713846744,-218.49387032,0.00022191,2]
[378060352,1754713846753,-248.20394,0.00022191,7]
[378060353,1754713846763,-248.20394,0.00022191,7]
[378060354,1754713846772,-461.88001973,0.00022191,2]
[378060355,1754713846781,-573.41,0.00022191,2]
[378060356,1754713846790,-504.60118821,0.00022191,2]
[378060357,1754713846800,-460.0,0.00022191,2]
[378060358,1754713846809,-151.0,0.00022191,7]
[378060359,1754713846818,-460.0,0.00022191,2]
[378060360,1754713846828,-460.0,0.00022191,2]
[378060361,1754713846837,-239.192816,0.00022191,7]
[378060362,1754713846847,-460.0,0.00022191,2]
[378060363,1754713846856,-460.0,0.00022191,2]
[378060364,1754713846866,-460.0,0.00022191,2]
[378060365,1754713846875,-460.0,0.00022191,2]
[378060366,1754713846884,-460.0,0.00022191,2]
[378060367,1754713846894,-464.7038424,0.00022191,2]
[378060368,1754713846903,-460.0,0.00022191,2]
[378060369,1754713846912,-460.0,0.00022191,2]
[378060370,1754713846922,-463.92512259,0.00022191,2]
[378060371,1754713846931,-548.41,0.00022191,2]
[378060372,1754713846940,-487.8,0.00022191,2]
[378060373,1754713846949,-460.0,0.00022191,2]
[378060374,1754713846958,-460.0,0.00022191,2]
[378060375,1754713846967,-460.0,0.00022191,2]
[378060376,1754713846977,-1615.05,0.00022191,2]
[378060377,1754713846986,-460.0,0.00022191,2]
[378060378,1754713846996,-464.3753302,0.00022191,2]
[378060379,1754713847005,-460.0,0.00022191,2]
[378060380,1754713847014,-464.69623174,0.00022191,2]
[378060381,1754713847023,-460.0,0.00022191,2]
[378060382,1754713847033,-460.0,0.00022191,2]
[378060383,1754713847042,-460.0,0.00022191,2]
[378060384,1754713847052,-460.0,0.00022191,2]
[378060385,1754713847061,-460.0,0.00022191,2]
[378060386,1754713847071,-535.71,0.00022191,2]
[378060387,1754713847080,-461.2065651,0.00022191,2]
[378060388,1754713847089,-460.0,0.00022191,2]
[378060389,1754713847098,-460.0,0.00022191,2]
[378060390,1754713847109,-464.64364585,0.00022191,2]
[378060391,1754713847119,-460.0,0.00022191,2]
[378060392,1754713847130,-460.0,0.00022191,2]
[378060393,1754713847141,-460.0,0.00022191,2]
[378060394,1754713847152,-270.554229,0.00022191,7]
[378060395,1754713847162,-270.554229,0.00022191,7]
[378060396,1754713847177,-576.55626843,0.00022191,2]
[378060397,1754713847188,-270.554229,0.00022191,7]
[378060398,1754713847197,-460.0,0.00022191,2]
[378060399,1754713847210,-270.554229,0.00022191,7]
[378060400,1754713847220,-196.0764329,0.00022191,2]
[378060401,1754713847229,-460.0,0.00022191,2]
[378060402,1754713847238,-460.0,0.00022191,2]
[378060403,1754713847247,-464.14082523,0.00022191,2]
[378060404,1754713847257,-460.0,0.00022191,2]
[378060405,1754713847267,-479.70448162,0.00022191,2]
[378060406,1754713847276,-1082.16,0.00022191,2]
[378060407,1754713847286,-460.0,0.00022191,2]
[378060408,1754713847295,-460.0,0.00022191,2]
[378060409,1754713847304,-460.0,0.00022191,2]
[378060410,1754713847314,-460.0,0.00022191,2]
[378060411,1754713847326,-968.67,0.00022191,2]
[378060412,1754713847336,-460.0,0.00022191,2]
[378060413,1754713847345,-756.39,0.00022191,2]
[378060414,1754713847354,-844.58,0.00022191,2]
[378060415,1754713847364,-1070.24,0.00022191,2]
[378060416,1754713847373,-151.0,0.00022191,7]
[378060417,1754713847382,-486.04,0.00022191,2]
[378060418,1754713847392,-460.0,0.00022191,2]
[378060419,1754713847401,-408.14695532,0.00022191,2]
[378060420,1754713847411,-1011.12,0.00022191,2]
[378060421,1754713847422,-460.0,0.00022191,2]
[378060422,1754713847431,-151.0,0.00022191,7]
[378060423,1754713847441,-460.0,0.00022191,2]
[378060424,1754713847451,-460.0,0.00022191,2]
[378060425,1754713847459,-460.0,0.00022191,2]
[378060426,1754713847469,-465.05589894,0.00022191,2]
[378060427,1754713847479,-460.0,0.00022191,2]
[378060428,1754713847489,-460.0,0.00022191,2]
[378060429,1754713847499,-460.0,0.00022191,2]
[378060430,1754713847509,-867.78,0.00022191,2]
[378060431,1754713847518,-460.0,0.00022191,2]
[378060432,1754713847529,-460.0,0.00022191,2]
[378060433,1754713847538,-1421.98,0.00022191,2]